Cogmind - Beta 10.2 @@@ ROGUE MODE // 2020.12.23 @ 17:40:03 Player: CrossedViper Result: Destroyed by G-67 Veteran with Electrolaser Performance ------------- Evolutions (7) 3500 Regions Visited (18) 3600 Robots Destroyed (300) 1500 Value Destroyed (13913) 13913 Prototype IDs (50) 1000 Alien Tech Used (0) 0 Bonus (8172) 8172 TOTAL SCORE: 31685 Bonus ------- Triggered High Security 500 High Alert Combat Kills 6039 Follower Combat Kills 3311 Network Hubs Disabled 200 Met Data Miner 300 Met Imprinter 300 Was Imprinted 300 Met R17 at Cetus 500 Friendly Fire -3278 Cogmind --------- Core Integrity 0/1300 Matter 51/300 Energy 74/100 System Corruption 8% Temperature Cool (12) Movement Core (250) Ox4 Location -3/Research Parts ------- > --- POWER (2) -------- (None) > --- PROPULSION (3) --- (None) > --- UTILITY (12) ----- (None) > --- WEAPON (4) ------- Zionite Alpha Cannon Mk. II > --- INVENTORY (4) ---- Zionite Shade Armor Light Regenerative Plating Peak State ------------ > --- POWER ------------ Enhanced Fission Core Zionite Heavy DM Reactor > --- PROPULSION ------- Flexi-carbon Leg Zionite Supercomposite Leg Zionite Supercomposite Leg > --- UTILITY ---------- Advanced Heat Sink Coolant Network Large Storage Unit High-capacity Storage Unit High-capacity Storage Unit High-capacity Storage Unit Particle Accelerator Improved Core Shielding Zionite Shade Armor Light Regenerative Plating Medium Regenerative Plating > --- WEAPON ----------- Gamma Rifle Plasma Rifle Improved KE Penetrator Heavy Shock Bomb Launcher > --- INVENTORY -------- Light Antimatter Reactor Light Antimatter Reactor Myomer Leg Myomer Leg Myomer Leg Zionite Supercomposite Leg Advanced Heat Sink Large Storage Unit High-capacity Storage Unit Energy Well Improved Energy Well Advanced Melee Analysis Suite Advanced Particle Charger Advanced Particle Charger Centrium Medium Armor Plating Centrium Medium Armor Plating Zionite Shade Armor Zionite Shade Armor Gamma Rifle Storm Laser Quantum Rifle Compact HERF Cannon Zionite Alpha Cannon Mk. II Zionite Alpha Cannon Mk. II High-powered Shotgun Hypervelocity Coil Gun Railgun Heavy Shock Bomb Launcher Micro-nuke Launcher Plasma Cutter [Rating: 157] Favorites ----------- Power Reinforced Fission Core Engine Improved Deuterium Engine Power Core Reinforced Fission Core Reactor Antimatter Reactor Propulsion Spiked Medium Treads Treads Spiked Medium Treads Leg Zionite Supercomposite Leg Wheel Armored Wheel Utility High-capacity Storage Unit Device Recoil Nullifier Storage High-capacity Storage Unit Processor Core Analyzer Hackware Improved Hacking Suite Protection Reactive Plating Weapon Gauss Rifle Energy Gun Spread Laser Energy Cannon Compact HERF Cannon Ballistic Gun Gauss Rifle Ballistic Cannon Mass Driver Launcher Heavy Shock Bomb Launcher Special Weapon Enhanced Flamer Slashing Weapon Katana Piercing Weapon Lance Build | -11 -10 -10 -9 -9 -7 -6 -6 -6 -6 -6 -5 -5 -5 -5 -5 -5 -4 -3 ------- Run | Scr Mat Min Mat Min Zio Pro Fac Low Low Dat Pro Fac Ext Cet Arc Hub Fac Res Slots Evolved 14 | . . . 2 . . . 6 . . . . 2 . . . . 2 2 Power 1 | . . . . . . . . . . . . 1 . . . . . . Propulsion 1 | . . . . . . . 1 . . . . . . . . . . . Utility 10 | . . . 2 . . . 4 . . . . 1 . . . . 1 2 Weapon 2 | . . . . . . . 1 . . . . . . . . . 1 . Parts Attached 311 | . 4 4 11 3 12 6 11 14 8 10 5 43 19 27 . 10 80 44 Power 28 | . . 1 1 . 1 1 1 1 . 1 . 6 . 2 . . 10 3 Engine 9 | . . 1 1 . 1 1 1 1 . . . 3 . . . . . . Core 5 | . . . . . . . . . . . . 2 . 1 . . 2 . Reactor 14 | . . . . . . . . . . 1 . 1 . 1 . . 8 3 Propulsion 49 | . 2 1 3 . 4 1 2 3 . . . 6 2 1 . 2 8 14 Treads 35 | . 2 1 3 . 1 1 2 3 . . . 6 2 1 . 2 7 4 Leg 10 | . . . . . . . . . . . . . . . . . . 10 Wheel 4 | . . . . . 3 . . . . . . . . . . . 1 . Hover . | . . . . . . . . . . . . . . . . . . . Flight . | . . . . . . . . . . . . . . . . . . . Utility 111 | . 2 . 5 2 3 1 5 6 5 3 3 8 9 8 . 1 35 15 Device 41 | . . . 2 1 1 . 2 2 3 2 1 4 4 3 . . 12 4 Storage 18 | . 2 . . . . . . 1 1 1 . 1 5 . . . 4 3 Processor 5 | . . . . . 1 . . 2 . . . 1 . . . . . 1 Hackware 1 | . . . . . . . . . . . . . . . . . . 1 Protection 46 | . . . 3 1 1 1 3 1 1 . 2 2 . 5 . 1 19 6 Artifact . | . . . . . . . . . . . . . . . . . . . Weapon 123 | . . 2 2 1 4 3 3 4 3 6 2 23 8 16 . 7 27 12 Energy Gun 26 | . . . 1 1 . 1 . . 2 . . 9 1 . . . 8 3 Energy Cannon 4 | . . . . . . . . . . . . . . . . . . 4 Ballistic Gun 56 | . . 2 . . 2 . 3 2 . 3 2 7 3 11 . 5 12 4 Ballistic Cannon 3 | . . . . . . . . 1 . . . 1 1 . . . . . Launcher 22 | . . . . . 1 1 . 1 1 1 . 4 3 3 . 1 5 1 Special Weapon 3 | . . . . . 1 1 . . . . . . . 1 . . . . Impact Weapon . | . . . . . . . . . . . . . . . . . . . Slashing Weapon 1 | . . . 1 . . . . . . . . . . . . . . . Piercing Weapon 8 | . . . . . . . . . . 2 . 2 . 1 . 1 2 . Special Melee Weapon . | . . . . . . . . . . . . . . . . . . . Unidentified Prototypes 20 | . . . . 1 . . . . . 1 . 1 2 6 . . 2 7 Parts Lost 102 | . . 4 2 . . 4 1 1 . 4 5 9 . . . 2 35 35 Power 10 | . . 1 . . . . . . . 1 . 2 . . . . 4 2 Propulsion 15 | . . 1 . . . 1 . . . . . 1 . . . . 3 9 Utility 37 | . . . 1 . . . . . . 1 3 2 . . . 1 17 12 Weapon 40 | . . 2 1 . . 3 1 1 . 2 2 4 . . . 1 11 12 Highest Loss Streak 29 | . . 4 2 . . 2 1 1 . 4 2 2 . . . 1 11 29 Average Slot Usage (%) 91 | . 99 99 97 100 99 90 85 99 100 99 95 86 93 94 94 91 73 81 Engine 4 | . 14 14 11 11 11 6 6 6 6 2 . 3 . . . . . . Core 2 | . . . . . . . . . . . . 1 11 11 11 11 3 5 Reactor 1 | . . . . . . . . . . 3 6 2 . . . . 5 2 Treads 13 | . 25 28 22 22 11 2 12 15 20 20 20 11 11 11 11 11 6 5 Wheel 2 | . . . . . 10 19 6 3 . . . . . . . . . . Device 10 | . . . 7 11 11 7 8 12 6 10 9 11 16 6 11 7 9 12 Storage 21 | . 27 28 22 22 22 22 13 13 18 20 20 22 23 28 23 23 22 22 Processor 8 | . . . . . 5 11 6 10 20 20 16 11 11 11 11 11 3 . Protection 6 | . . . 12 11 5 3 12 15 7 2 2 . . 4 5 5 10 11 Energy Gun 3 | . . . 7 11 4 1 3 . 3 2 . 5 . . . . 4 3 Ballistic Gun 13 | . 28 27 14 11 11 7 15 17 15 11 19 8 16 9 17 16 4 10 Naked Turns 32 | . . . . . . . . . . . . . . . . . . 32 Heaviest Build 216 | 13 41 43 51 47 48 49 80 100 102 102 109 156 191 195 182 184 216 202 Greatest Support 108 | 20 40 40 40 40 40 24 40 84 84 84 84 98 98 108 108 108 108 108 Greatest Overweight (x) 10 | . 2 1 1 1 2 4 6 8 1 1 1 1 1 1 1 1 10 7 Average Overweight (x) 1 | . . 1 1 1 1 1 5 5 1 . 1 1 1 1 1 1 1 1 Largest Inventory Capacity 42 | . 16 16 16 16 16 16 16 18 24 24 24 32 36 36 36 36 36 42 Average Capacity 24 | . 15 16 16 16 16 16 16 17 22 24 24 31 33 36 36 36 30 31 Most Carried 36 | . 16 16 12 13 16 16 16 18 24 23 24 32 36 36 36 36 36 33 Average Carried 22 | . 7 14 10 12 15 15 13 17 22 21 22 28 32 35 36 35 25 24 Final Capacity 36 | 6 16 16 16 16 16 16 16 18 24 24 24 32 36 36 36 36 28 4 Final Carried 36 | 6 16 12 11 13 16 14 15 18 23 23 21 32 36 36 36 36 27 2 Class Distribution -------------------- 17% | Scavenger-Mutant 16% | Hauler-Gunner 14% | Scavenger-Gunner 10% | Derelict-Skirmisher 10% | Derelict-Mutant 7% | Scavenger-Tank 6% | Mutant 5% | Hauler-Mutant 5% | Derelict-Gunner Dominant Class ---------------- Mutant | -10/Materials Mutant | -10/Mines Scavenger-Mutant | -9/Materials Scavenger-Mutant | -9/Mines Scavenger-Mutant | -7/Zion Derelict-Mutant | -6/Proximity Caves Scavenger-Skirmisher | -6/Factory Scavenger-Tank | -6/Lower Caves Derelict-Skirmisher | -6/Lower Caves Derelict-Mutant | -6/Data Miner Derelict-Skirmisher | -5/Proximity Caves Hauler-Gunner | -5/Factory Hauler-Gunner | -5/Extension Hauler-Gunner | -5/Cetus Scavenger-Gunner | -5/Archives Scavenger-Gunner | -5/Hub_04(d) Scavenger-Gunner | -4/Factory Scavenger-Gunner | -3/Research Resources | -11 -10 -10 -9 -9 -7 -6 -6 -6 -6 -6 -5 -5 -5 -5 -5 -5 -4 -3 ----------- Run | Scr Mat Min Mat Min Zio Pro Fac Low Low Dat Pro Fac Ext Cet Arc Hub Fac Res Matter Collected 7982 | 200 136 90 407 22 160 171 285 234 204 134 237 1567 923 459 113 389 1476 775 Remotely . | . . . . . . . . . . . . . . . . . . . Salvage Created 17043 | . 292 189 866 . . 176 442 163 197 380 129 2518 1244 1020 121 1200 5887 2219 Parts 731 | . 28 13 54 . . 8 15 4 6 17 6 122 57 43 7 64 211 76 Haulers Intercepted 6 | . 1 . . . . . . . . . . . 1 . . 3 1 . Recyclers Shooed 15 | . . 1 2 . . . . . . . . 6 3 . . . 2 1 Parts Field Recycled . | . . . . . . . . . . . . . . . . . . . Retrieved Matter . | . . . . . . . . . . . . . . . . . . . Parts Self-Destructed 54 | . . . . . . 13 . 8 10 . 23 . . . . . . . Prevented 2 | . . . . . . . . 2 . . . . . . . . . . Kills | -11 -10 -10 -9 -9 -7 -6 -6 -6 -6 -6 -5 -5 -5 -5 -5 -5 -4 -3 ------- Run | Scr Mat Min Mat Min Zio Pro Fac Low Low Dat Pro Fac Ext Cet Arc Hub Fac Res Combat Hostiles Destroyed 217 | . 6 5 17 . . 3 3 6 5 4 2 33 13 11 1 13 72 23 Melee 5 | . . . . . . . . . . . . 1 . . . . 3 1 Guns 142 | . 6 5 17 . . . 2 3 1 2 2 20 13 . 1 12 47 11 Cannons 6 | . . . . . . . . . . . . 6 . . . . . . AOE 46 | . . . . . . 3 1 3 4 . . 6 . 7 . 1 14 7 Classes Destroyed 20 | . 5 2 1 . . 1 1 1 1 . . 5 1 . . . . 2 Worker 18 | . 1 . 1 . . . . . . . . 5 1 . . 4 5 1 Builder 20 | . . . . . . . . . . . . 7 . . . 3 7 3 Tunneler 1 | . . . . . . . . . . . . . . . . . . 1 Hauler 6 | . 1 . . . . . . . . . . . 1 . . 3 1 . Recycler 18 | . . 1 3 . . . 2 . . . . 5 . . . 1 4 2 Minesweeper 1 | . . . . . . . . . 1 . . . . . . . . . Mechanic 2 | . . . . . . . . . . . . . . . . . . 2 Operator 3 | . . . . . . . . . . . . . 1 . 1 . . 1 Watcher 9 | . 2 . 2 . . . . . . . . 1 1 2 . . 1 . Swarmer 22 | . 2 4 2 . . . . 1 . . . 5 . . . 4 4 . Saboteur 3 | . . . . . . . . . . . . 1 . . . . 1 1 Grunt 101 | . 4 . 11 . . 1 1 1 3 . 2 15 5 6 . 1 39 12 Brawler 14 | . . . . . . . . 3 1 . . 1 . 1 . . 6 2 Duelist 5 | . . . 1 . . . . . . . . . 1 . . . 1 2 Protector 2 | . . . . . . . . . . . . 1 . . . . 1 . Sentry 25 | . . 1 3 . . . . 1 1 . . 3 7 . 1 3 3 2 Hunter 20 | . . . . . . 2 1 . . . . 2 . . . 3 8 4 Programmer 14 | . . . . . . . . . . . . 5 . . . 1 8 . Behemoth 3 | . . . . . . . 1 . . . . . . . . 1 1 . Cetus Guard 4 | . . . . . . . . . . . . . . 4 . . . . Enhanced Grunt 4 | . . . . . . . . . . 4 . . . . . . . . Z-Heavy 1 | . . . . . . . . . . . . 1 . . . . . . Butcher 1 | . . . . . . . . . . . . . 1 . . . . . Guerrilla 2 | . . . . . . . . . . . . . . 2 . . . . Best Kill Streak 20 | . 5 4 11 . . 2 2 6 4 2 2 8 4 7 1 9 20 12 Combat Bots Only 18 | . 2 3 8 . . 2 1 6 4 2 2 5 3 4 1 5 18 9 Max Kills in Single Turn 7 | . 2 1 1 . . 2 1 2 1 2 1 4 2 4 1 7 3 3 Gunslinging 1 | . . . . . . . . 1 . . . . . . . 1 1 . Exploded 4 | . . . . . . 2 1 1 1 . . 2 . 4 . 1 3 2 Melee 1 | . . . . . . . . . . . . 1 . . . . 1 1 Uniques/NPCs Destroyed 1 | . . . . . . . . . . . . . . 1 . . . . A7 (-5/Cetus) Combat | -11 -10 -10 -9 -9 -7 -6 -6 -6 -6 -6 -5 -5 -5 -5 -5 -5 -4 -3 -------- Run | Scr Mat Min Mat Min Zio Pro Fac Low Low Dat Pro Fac Ext Cet Arc Hub Fac Res Damage Taken 28925 | . 144 692 796 . . 602 1028 330 92 744 975 2914 821 215 264 1557 11489 6262 Core 3293 | . 28 138 95 . . 97 123 . . 91 22 186 119 . . 171 910 1313 Absorbed by Shields 101 | . . . . . . . . . . . . . 49 52 . . . . Reduced by Siege Mode 165 | . . . . . . . . . . . . . . . . . 165 . Core Remaining (%) 54 | 100 . 33 . . . 52 . . . . 72 . . . . 52 20 . Volleys Fired 635 | . 18 20 71 . . 19 22 7 10 10 23 100 44 19 6 32 167 67 Largest 4 | . 2 2 2 . . 2 3 3 3 2 3 3 3 3 3 3 4 4 Hottest 279 | . 40 46 88 . . 104 84 84 84 109 84 195 149 138 105 116 250 279 Shots Fired 1370 | . 36 39 137 . . 20 50 11 20 15 67 263 132 33 18 92 269 168 Gun 1195 | . 36 39 137 . . 4 50 6 15 10 67 207 132 . 18 91 239 144 Cannon 54 | . . . . . . . . . . . . 45 . . . . . 9 Launcher 103 | . . . . . . 10 . 5 5 5 . 11 . 21 . 1 30 15 Special 18 | . . . . . . 6 . . . . . . . 12 . . . . Kinetic 1023 | . 36 39 93 . . 3 45 6 15 7 67 221 128 . 18 91 146 108 Thermal 191 | . . . 44 . . 6 . . . 3 . 6 4 12 . . 92 24 Explosive 30 | . . . . . . 10 . 5 5 . . 10 . . . . . . Electromagnetic 126 | . . . . . . 1 5 . . 5 . 26 . 21 . 1 31 36 Robot Hit Streak 27 | . 10 10 18 . . 4 9 5 9 3 11 22 27 2 6 8 14 14 Robot Miss Streak 11 | . 3 2 4 . . 1 4 3 1 1 2 3 3 4 1 2 11 3 Penetration Max 2 | . . . . . . . 1 . . 1 . 1 2 . 1 1 1 2 Secondary Targets 16 | . 3 1 1 . . . . 1 . . . 3 . . . 1 4 2 Max Gunslinging Chain 1 | . 1 1 1 . . . . 1 . . . 1 . . . 1 1 1 Shots Hit Robots 893 | . 21 30 106 . . 8 35 5 11 8 49 163 76 10 14 51 195 111 Core Hits 711 | . 14 11 69 . . 17 17 14 18 11 15 103 38 36 7 43 230 68 Critical Hits 112 | . . . 1 . . . . . . . 1 27 35 . 3 17 22 6 Critical Kills 35 | . . . . . . . . . . . . 10 11 . 1 3 8 2 Critical Parts Destroyed 60 | . . . 1 . . . . . . . 1 14 18 . 2 9 12 3 Melee Attacks 24 | . . . 2 . . . . . . 3 . 2 . 2 . 1 14 . Impact . | . . . . . . . . . . . . . . . . . . . Slashing 2 | . . . 2 . . . . . . . . . . . . . . . Piercing 22 | . . . . . . . . . . 3 . 2 . 2 . 1 14 . Sneak Attacks 3 | . . . . . . . . . . 1 . . . 2 . . . . Combat Hostiles . | . . . . . . . . . . . . . . . . . . . Follow-up Attacks . | . . . . . . . . . . . . . . . . . . . Damage Inflicted 37868 | . 328 405 1398 . . 904 1085 949 1024 512 1111 4483 1621 2246 471 2425 13681 5225 Guns 23267 | . 328 404 1392 . . 28 974 107 214 206 1111 2496 1621 . 471 1463 9490 2962 Cannons 857 | . . . . . . . . . . . . 788 . . . . . 69 Explosions 13034 | . . . . . . 822 111 842 810 186 . 1195 . 1991 . 962 3921 2194 Melee 492 | . . . . . . . . . . 120 . . . 145 . . 227 . Ramming 54 | . . 1 6 . . . . . . . . 4 . . . . 43 . Kinetic 15408 | . 328 404 865 . . . 887 107 214 174 1111 3001 1550 . 471 1463 2561 2272 Thermal 12310 | . . . 527 . . 153 111 . . 32 . 188 71 842 . 73 9100 1213 Explosive 3434 | . . . . . . 723 . 842 810 . . 1059 . . . . . . Electromagnetic 6170 | . . . . . . 28 87 . . 186 . 231 . 1259 . 889 1750 1740 Impact . | . . . . . . . . . . . . . . . . . . . Slashing . | . . . . . . . . . . . . . . . . . . . Piercing 492 | . . . . . . . . . . 120 . . . 145 . . 227 . Highest Corruption 37 | . 3 3 . . . . 2 2 2 2 2 5 5 5 5 7 37 8 Average Corruption 5 | . 2 3 . . . . 1 2 2 2 2 3 5 5 5 5 20 4 Corruption Purged . | . . . . . . . . . . . . . . . . . . . Effects 296 | . 3 9 . . . . 1 9 8 6 12 26 40 17 3 27 119 16 Message Errors 52 | . 1 2 . . . . . 5 1 2 5 4 8 2 1 5 14 2 Matter Fused 39 | . 1 2 . . . . . . . . . 7 10 4 1 5 7 2 Heat Flow Errors 31 | . 1 . . . . . . 2 1 2 2 1 6 3 . 1 11 1 Energy Discharges 27 | . . . . . . . . 1 1 1 3 2 8 1 1 3 4 2 Parts Rejected 2 | . . . . . . . . . . . . . . . . . 2 . Data Loss (minor) 26 | . . 2 . . . . . 1 3 1 1 2 3 4 . 4 3 2 Data Loss (major) 6 | . . . . . . . . . . . . 2 1 . . . 3 . Misfires 7 | . . . . . . . . . . . . 1 1 . . 2 3 . Alerts 1 | . . . . . . . . . . . . . . . . . 1 . Misdirections 14 | . . . . . . . . . . . . . . . . . 14 . Targeting Errors 71 | . . 2 . . . . 1 . 2 . . 6 2 3 . 5 43 7 Weapon Failures 20 | . . 1 . . . . . . . . 1 1 1 . . 2 14 . Overload Shots . | . . . . . . . . . . . . . . . . . . . Overflow Damage 627 | . . . . . . 14 . . 97 60 . 22 . 3 . 22 247 162 Projectiles 1 | . . . . . . . . . . . . . . 1 . . . . Explosions 566 | . . . . . . 14 . . 97 . . 22 . 2 . 22 247 162 Melee 60 | . . . . . . . . . . 60 . . . . . . . . Knockbacks 3 | . . . . . . . . . . . . 2 . . . . 1 . Impact 1 | . . . . . . . . . . . . . . . . . 1 . Kinetic 2 | . . . . . . . . . . . . 2 . . . . . . Secondary . | . . . . . . . . . . . . . . . . . . . Self-Inflicted Damage 951 | . . . . . . . . 31 . . . 75 . . . 99 553 193 Shots 24 | . . . . . . . . 1 . . . 2 . . . 1 14 6 Rammed 9 | . . 1 1 . . . . . . . . 1 . . . . 6 . Targets Rammed 10 | . . 1 1 . . . . . . . . 1 . . . . 7 . Kicked . | . . . . . . . . . . . . . . . . . . . Crushed 1 | . . . . . . . . . . . . . . . . . 1 . Highest Temperature 446 | . 196 2 183 . . 97 50 116 274 160 178 303 236 189 . 297 446 330 Average Temperature 94 | . 100 2 42 . . 37 19 59 66 61 59 88 54 68 . 110 127 92 Received Heat Transfer 4014 | . 48 45 282 . . 183 138 93 18 96 219 684 213 18 45 60 1170 702 Effects 8 | . . . . . . . . . . . . . . . . . 8 . Shutdowns 2 | . . . . . . . . . . . . . . . . . 2 . Energy Bleed 3 | . . . . . . . . . . . . . . . . . 3 . Interference 2 | . . . . . . . . . . . . . . . . . 2 . Matter Decay 1 | . . . . . . . . . . . . . . . . . 1 . Siege Activations 1 | . . . . . . . . . . . . . . . . . 1 . Total Turns 46 | . . . . . . . . . . . . . . . . . 46 . Longest Duration 46 | . . . . . . . . . . . . . . . . . 46 . Robots Corrupted 16 | . . . . . . . . . . 2 . . . 4 . . 6 4 Combat Hostiles 15 | . . . . . . . . . . 2 . . . 4 . . 5 4 Parts Fried 48 | . . . . . . . 1 . . 6 . . . 9 . 5 11 16 Impact Corruptions . | . . . . . . . . . . . . . . . . . . . Robots Melted 3 | . . . . . . . . . . . . . . . . . 3 . Combat Hostiles 3 | . . . . . . . . . . . . . . . . . 3 . Parts Melted 27 | . . . . . . . . . . . . 1 . . . . 24 2 Heat Transferred 14327 | . . . 670 . . 500 50 . . 74 . 298 111 1020 . 100 10232 1272 Parts Sabotaged 3 | . . . . . . . . . . . . 3 . . . . . . Parts Stolen . | . . . . . . . . . . . . . . . . . . . Parts Stripped . | . . . . . . . . . . . . . . . . . . . Power Chain Reactions 22 | . . . . . . 1 1 . . . . 1 . 6 . 1 6 6 Missiles Intercepted . | . . . . . . . . . . . . . . . . . . . Alert | -11 -10 -10 -9 -9 -7 -6 -6 -6 -6 -6 -5 -5 -5 -5 -5 -5 -4 -3 ------- Run | Scr Mat Min Mat Min Zio Pro Fac Low Low Dat Pro Fac Ext Cet Arc Hub Fac Res Peak Influence 2291 | . 166 239 522 178 . . 369 . . . . 1218 1255 1352 639 867 2291 1981 Initial 1169 | . . 64 77 178 . . 182 . . . . 51 590 702 460 223 412 1169 Average 710 | . 72 161 350 88 . . 238 . . . . 623 744 1058 602 465 1149 1391 Maximum Alert Level 5 | . . 1 2 . . . 1 . . . . 4 4 4 2 3 5 5 Low Security (%) 22 | . 100 93 25 100 . . 31 . . . . 23 . . . . . . Level 1 10 | . . 6 21 . . . 68 . . . . 9 . . . 40 1 . Level 2 26 | . . . 53 . . . . . . . . 21 57 . 100 43 35 . Level 3 15 | . . . . . . . . . . . . 32 33 26 . 16 12 . Level 4 17 | . . . . . . . . . . . . 12 8 73 . . 18 74 Level 5 7 | . . . . . . . . . . . . . . . . . 30 10 High Security 1 | . . . . . . . . . . . . . . . . . . 14 Max Security . | . . . . . . . . . . . . . . . . . . . Squads Dispatched 56 | . 1 . 3 . . . . . . . . 8 2 . . 6 22 14 Investigation 5 | . 1 . 3 . . . . . . . . . . . . . . 1 Extermination 9 | . . . . . . . . . . . . 3 . . . 1 4 1 Reinforcement 21 | . . . . . . . . . . . . 3 2 . . 5 8 3 Assault 17 | . . . . . . . . . . . . 2 . . . . 7 8 Garrison 4 | . . . . . . . . . . . . . . . . . 3 1 Intercept . | . . . . . . . . . . . . . . . . . . . Construction Impeded 10 | . . . . . . . . . . . . 2 . . . 1 5 2 Haulers Reinforced 4 | . . . . . . . . . . . . . . . . 2 2 . Stealth | -11 -10 -10 -9 -9 -7 -6 -6 -6 -6 -6 -5 -5 -5 -5 -5 -5 -4 -3 --------- Run | Scr Mat Min Mat Min Zio Pro Fac Low Low Dat Pro Fac Ext Cet Arc Hub Fac Res Distress Signals 23 | . . . 3 . . . 1 . . . . 3 5 2 . 2 5 2 Communications Jammed . | . . . . . . . . . . . . . . . . . . . Distress Signals . | . . . . . . . . . . . . . . . . . . . Times Spotted 406 | . 10 10 24 . . 12 10 13 6 4 6 57 39 17 6 18 108 66 Peak Tracking Total 20 | . 3 3 9 . . 4 3 6 5 4 4 7 5 7 2 7 10 20 Tactical Retreats 22 | . . 1 5 . . . . 2 . . . 3 2 . . 1 7 1 Traps | -11 -10 -10 -9 -9 -7 -6 -6 -6 -6 -6 -5 -5 -5 -5 -5 -5 -4 -3 ------- Run | Scr Mat Min Mat Min Zio Pro Fac Low Low Dat Pro Fac Ext Cet Arc Hub Fac Res Traps Triggered 17 | . 2 . 1 . . . 1 . . . . 1 6 . . 1 2 3 Indirectly 2 | . . . . . . . . . . . . . . . . 1 . 1 Trap Hack Attempts . | . . . . . . . . . . . . . . . . . . . Triggered . | . . . . . . . . . . . . . . . . . . . Disarmed . | . . . . . . . . . . . . . . . . . . . Reprogrammed . | . . . . . . . . . . . . . . . . . . . Reused 1 | . . . . . . . . . . 1 . . . . . . . . Traps Extracted . | . . . . . . . . . . . . . . . . . . . Installed 4 | . . . . . . . . . . 4 . . . . . . . . Triggered 1 | . . . . . . . . . . . 1 . . . . . . . Machines | -11 -10 -10 -9 -9 -7 -6 -6 -6 -6 -6 -5 -5 -5 -5 -5 -5 -4 -3 ---------- Run | Scr Mat Min Mat Min Zio Pro Fac Low Low Dat Pro Fac Ext Cet Arc Hub Fac Res Machines Disabled 52 | . . . . . . . 2 . . . . 15 3 1 4 5 19 3 Max in Single Turn 5 | . . . . . . . 1 . . . . 5 2 . 1 2 4 1 Garrison Access 1 | . . . . . . . 1 . . . . . . . . . . . Network Hub 1 | . . . . . . . . . . . . . . . . 1 . . Energy Cycler 1 | . . . . . . . . . . . . . 1 . . . . . Machines Sabotaged . | . . . . . . . . . . . . . . . . . . . Garrisons Compromised . | . . . . . . . . . . . . . . . . . . . Overloaded Fab Kills . | . . . . . . . . . . . . . . . . . . . Fab Network Shutdowns . | . . . . . . . . . . . . . . . . . . . Hacking | -11 -10 -10 -9 -9 -7 -6 -6 -6 -6 -6 -5 -5 -5 -5 -5 -5 -4 -3 --------- Run | Scr Mat Min Mat Min Zio Pro Fac Low Low Dat Pro Fac Ext Cet Arc Hub Fac Res Machines Accessed 18 | . 3 . 3 . . . 1 3 1 4 . . . . 1 1 . 1 Terminals 6 | . 3 . 3 . . . . . . . . . . . . . . . Fabricators 1 | . . . . . . . . . . . . . . . . . . 1 Repair Stations . | . . . . . . . . . . . . . . . . . . . Recycling Units . | . . . . . . . . . . . . . . . . . . . Scanalyzers . | . . . . . . . . . . . . . . . . . . . Garrison Access 2 | . . . . . . . 1 . . . . . . . . 1 . . Total Hacks 62 | . 7 . 8 . . . 2 9 1 27 . . . . 2 2 . 4 Successful 44 | . . . 1 . . . 1 9 1 27 . . . . 2 . . 3 Failed 18 | . 7 . 7 . . . 1 . . . . . . . . 2 . 1 Catastrophic 7 | . 4 . 2 . . . . . . . . . . . . 1 . . Database Lockouts . | . . . . . . . . . . . . . . . . . . . Manual 120 | . 4 . 4 . . . 9 . . . . 12 44 10 . 19 15 3 Terminals 15 | . 7 . 8 . . . . . . . . . . . . . . . Fabricators 4 | . . . . . . . . . . . . . . . . . . 4 Repair Stations . | . . . . . . . . . . . . . . . . . . . Recycling Units . | . . . . . . . . . . . . . . . . . . . Scanalyzers . | . . . . . . . . . . . . . . . . . . . Garrison Access 4 | . . . . . . . 2 . . . . . . . . 2 . . Terminal Hacks 40 | . . . 1 . . . . 9 1 27 . . . . 2 . . . Record 20 | . . . . . . . . 7 . 11 . . . . 2 . . . Part Schematic 7 | . . . . . . . . . . 7 . . . . . . . . Robot Schematic 6 | . . . . . . . . . . 6 . . . . . . . . Prototype ID Bank 3 | . . . . . . . . . . 3 . . . . . . . . Open Door 3 | . . . . . . . . 2 1 . . . . . . . . . Branch Access Points 1 | . . . 1 . . . . . . . . . . . . . . . Fabricator Hacks 2 | . . . . . . . . . . . . . . . . . . 2 Load Schematic 1 | . . . . . . . . . . . . . . . . . . 1 Build 1 | . . . . . . . . . . . . . . . . . . 1 Repair Station Hacks . | . . . . . . . . . . . . . . . . . . . Recycling Unit Hacks . | . . . . . . . . . . . . . . . . . . . Scanalyzer . | . . . . . . . . . . . . . . . . . . . Garrison Access Hacks 1 | . . . . . . . 1 . . . . . . . . . . . Seal Access 1 | . . . . . . . 1 . . . . . . . . . . . Unauthorized Hacks 1 | . . . . . . . . . . . . . . . . . . 1 Terminals . | . . . . . . . . . . . . . . . . . . . Fabricators 1 | . . . . . . . . . . . . . . . . . . 1 Prioritize 1 | . . . . . . . . . . . . . . . . . . 1 Repair Stations . | . . . . . . . . . . . . . . . . . . . Recycling Units . | . . . . . . . . . . . . . . . . . . . Scanalyzers . | . . . . . . . . . . . . . . . . . . . Garrison Access . | . . . . . . . . . . . . . . . . . . . Data Cores Recovered . | . . . . . . . . . . . . . . . . . . . Used . | . . . . . . . . . . . . . . . . . . . Hacking Detections 8 | . 3 . 2 . . . 1 . . . . . . . . 1 . 1 Full Trace Events 5 | . 3 . 2 . . . . . . . . . . . . . . . Feedback Events . | . . . . . . . . . . . . . . . . . . . Feedback Blocked . | . . . . . . . . . . . . . . . . . . . Robot Schematics Acquired 20 | . . . . . . . . . . 6 . . 9 . . 5 . . Robots Built . | . . . . . . . . . . . . . . . . . . . Matter . | . . . . . . . . . . . . . . . . . . . Time . | . . . . . . . . . . . . . . . . . . . Total Robot Build Rating . | . . . . . . . . . . . . . . . . . . . Part Schematics Acquired 41 | . . . . . . . . . . 7 . . 10 13 . 11 . . Parts Built 1 | . . . . . . . . . . . . . . . . . . 1 Matter 285 | . . . . . . . . . . . . . . . . . . 285 Time 152 | . . . . . . . . . . . . . . . . . . 152 Total Part Build Rating 5 | . . . . . . . . . . . . . . . . . . 5 Parts Repaired . | . . . . . . . . . . . . . . . . . . . Time . | . . . . . . . . . . . . . . . . . . . Parts Recycled . | . . . . . . . . . . . . . . . . . . . Recycled Matter . | . . . . . . . . . . . . . . . . . . . Retrieved Matter . | . . . . . . . . . . . . . . . . . . . Retrieved Components . | . . . . . . . . . . . . . . . . . . . Parts Scanalyzed . | . . . . . . . . . . . . . . . . . . . Part Schematics Acquired . | . . . . . . . . . . . . . . . . . . . Parts Damaged . | . . . . . . . . . . . . . . . . . . . Bothacking | -11 -10 -10 -9 -9 -7 -6 -6 -6 -6 -6 -5 -5 -5 -5 -5 -5 -4 -3 ------------ Run | Scr Mat Min Mat Min Zio Pro Fac Low Low Dat Pro Fac Ext Cet Arc Hub Fac Res Used RIF Installer . | . . . . . . . . . . . . . . . . . . . Robots Hacked . | . . . . . . . . . . . . . . . . . . . Non-combat . | . . . . . . . . . . . . . . . . . . . Combat . | . . . . . . . . . . . . . . . . . . . Robot Hacks Applied . | . . . . . . . . . . . . . . . . . . . Relay Couplers Released . | . . . . . . . . . . . . . . . . . . . Robots Rewired 7 | . . . . . . . . 2 . . . . 5 . . . . . Allies Hacked 1 | . . . . . . . 1 . . . . . . . . . . . Hacks Repelled . | . . . . . . . . . . . . . . . . . . . Allies | -11 -10 -10 -9 -9 -7 -6 -6 -6 -6 -6 -5 -5 -5 -5 -5 -5 -4 -3 -------- Run | Scr Mat Min Mat Min Zio Pro Fac Low Low Dat Pro Fac Ext Cet Arc Hub Fac Res Total Allies 39 | . . . . 3 4 . . 5 . . . 3 21 . . 2 . 1 Largest Group 13 | . . . . 3 7 7 4 3 2 2 2 2 13 8 3 2 . 1 Highest-Rated Group 537 | . . . . 40 191 191 117 93 59 59 59 170 537 386 100 188 . 268 Highest-Rated Ally 268 | . . . . 16 41 41 38 33 30 30 30 85 156 150 37 94 . 268 Zionite Dispatches 7 | . . . . . . . . . . . . 2 4 . . . . 1 Heavy 1 | . . . . . . . . . . . . 1 . . . . . . Experimental 1 | . . . . . . . . . . . . . . . . . . 1 Kinetic Resupply 1 | . . . . . . . . . . . . . 1 . . . . . Heavy Resupply 2 | . . . . . . . . . . . . 1 1 . . . . . Hover Resupply 2 | . . . . . . . . . . . . . 2 . . . . . Total Orders 5 | . . . . . . . . . . 2 . 1 2 . . . . . STAY 1 | . . . . . . . . . . 1 . . . . . . . . FOLLOW 1 | . . . . . . . . . . 1 . . . . . . . . DROP 3 | . . . . . . . . . . . . 1 2 . . . . . Ally Attacks 444 | . . . . . . 54 35 11 6 11 23 33 137 68 13 18 . 35 Total Damage 11981 | . . . . . . 551 888 145 95 164 374 2213 2475 1006 118 612 . 3340 Kills 87 | . . . . . . 8 7 1 2 . 4 17 21 8 3 3 . 13 Allies Corrupted 1 | . . . . . . . . . . . . . . . . 1 . . Allies Melted . | . . . . . . . . . . . . . . . . . . . Intel | -11 -10 -10 -9 -9 -7 -6 -6 -6 -6 -6 -5 -5 -5 -5 -5 -5 -4 -3 ------- Run | Scr Mat Min Mat Min Zio Pro Fac Low Low Dat Pro Fac Ext Cet Arc Hub Fac Res Robot Analysis Total . | . . . . . . . . . . . . . . . . . . . Derelict Logs Recovered 7 | . . . . 1 2 . . . 2 . 2 . . . . . . . Drone Launches . | . . . . . . . . . . . . . . . . . . . Drone Recoveries . | . . . . . . . . . . . . . . . . . . . Zionite Intel Received 22 | . . . . . . . 2 . . . . 1 9 2 . 5 3 . Branch Access 1 | . . . . . . . . . . . . 1 . . . . . . Emergency Access 2 | . . . . . . . . . . . . . 1 . . 1 . . Guard Positions 2 | . . . . . . . 1 . . . . . 1 . . . . . Component Stockpiles 2 | . . . . . . . . . . . . . . 1 . . 1 . Prototype Stockpiles 1 | . . . . . . . . . . . . . . . . . 1 . Component Schematics 1 | . . . . . . . . . . . . . . 1 . . . . Prototype Schematics 2 | . . . . . . . . . . . . . 1 . . 1 . . Unaware Schematics 3 | . . . . . . . . . . . . . 2 . . 1 . . Trap Installations 2 | . . . . . . . . . . . . . 1 . . 1 . . Active Terminals 2 | . . . . . . . . . . . . . 1 . . 1 . . Active Garrisons 1 | . . . . . . . . . . . . . . . . . 1 . Depthwide Sectors/0 2 | . . . . . . . 1 . . . . . 1 . . . . . Depthwide Sectors/-1 1 | . . . . . . . . . . . . . 1 . . . . . Exploration | -11 -10 -10 -9 -9 -7 -6 -6 -6 -6 -6 -5 -5 -5 -5 -5 -5 -4 -3 ------------- Run | Scr Mat Min Mat Min Zio Pro Fac Low Low Dat Pro Fac Ext Cet Arc Hub Fac Res Turns Passed 16247 | . 378 375 603 802 1668 394 547 1273 1001 691 1107 1657 1409 529 108 734 2067 904 Spaces Moved 7559 | 1 172 166 195 442 1190 276 319 684 476 315 513 661 618 209 45 279 664 334 Core 62 | . . . . . . . . . . . . . . . . . . 62 Treads 5663 | . 150 166 195 442 481 . 3 195 476 315 513 661 618 209 45 279 662 253 Legs 42 | 1 22 . . . . . . . . . . . . . . . . 19 Wheels 1792 | . . . . . 709 276 316 489 . . . . . . . . 2 . Hover . | . . . . . . . . . . . . . . . . . . . Flight . | . . . . . . . . . . . . . . . . . . . Fastest Speed 50 | 120 120 180 180 180 100 100 130 150 200 160 200 180 180 190 190 180 180 50 Average Speed 173 | 120 175 180 180 180 132 103 143 170 200 198 200 189 188 190 190 189 196 166 Slowest Speed 410 | 120 180 180 180 180 200 130 190 280 200 200 200 200 190 190 190 190 240 410 Overloaded Moves . | . . . . . . . . . . . . . . . . . . . Propulsion Burnouts . | . . . . . . . . . . . . . . . . . . . Robots Hopped . | . . . . . . . . . . . . . . . . . . . Cave-ins Triggered . | . . . . . . . . . . . . . . . . . . . Exploration Rate (%) 49 | 2 36 34 26 87 89 45 12 77 54 77 79 21 84 69 66 37 21 18 Regions Visited 18 Branch Regions 12 Pre-discovered Areas 25 | . . 1 . . 3 . 6 . 1 1 . . 13 . . . . . Known Exits Taken 9 | . . . 1 . 1 1 1 1 1 1 1 1 . . . . . . Unknown Exits Taken 9 | 1 1 1 . 1 . . . . . . . . 1 1 1 1 1 . Scrap Searched 12 | . . . . 1 4 . . 4 2 . 1 . . . . . . . Spaces Dug 50 | . . . 2 . . . . 16 . . . 22 3 . . 1 6 . Terrain Destroyed 861 | . . . 2 . . 62 3 59 26 . 1 133 29 41 2 203 271 29 Melee 7 | . . . 2 . . . . . . . . 2 . . . 1 2 . Projectile 115 | . . . . . . . . . 2 . 1 20 17 . 2 19 49 5 AOE 739 | . . . . . . 62 3 59 24 . . 111 12 41 . 183 220 24 Terrain Rammed . | . . . . . . . . . . . . . . . . . . . Walls Destroyed . | . . . . . . . . . . . . . . . . . . . Machines Disabled . | . . . . . . . . . . . . . . . . . . . Actions | -11 -10 -10 -9 -9 -7 -6 -6 -6 -6 -6 -5 -5 -5 -5 -5 -5 -4 -3 --------- Run | Scr Mat Min Mat Min Zio Pro Fac Low Low Dat Pro Fac Ext Cet Arc Hub Fac Res Total 9300 | . 214 205 304 448 1288 357 367 782 508 359 543 847 764 297 54 411 998 554 Wait 356 | . . 3 20 . 61 56 . 4 . 7 1 10 13 1 4 79 23 74 Move 7541 | . 171 165 194 441 1189 275 318 683 475 314 512 660 617 208 44 278 663 334 Hop . | . . . . . . . . . . . . . . . . . . . Pick Up 139 | . 15 6 1 3 10 . 7 10 10 7 1 14 7 18 . 5 15 10 Fast Attach 104 | . 1 . 4 . 4 2 6 7 . 1 . 25 3 1 . 4 27 19 Attach 87 | . 2 4 2 . 2 2 4 2 . 3 4 5 1 1 . 2 34 19 Detach 17 | . . . . . . . . . . . 1 1 . . . . 12 3 Swap 120 | . 1 . 5 3 6 2 1 5 8 6 1 13 15 25 . 4 19 6 Drop 153 | . 6 6 4 1 16 1 4 13 5 4 . 16 10 22 . 6 17 22 Fire 635 | . 18 20 71 . . 19 22 7 10 10 23 100 44 19 6 32 167 67 Melee 24 | . . . 2 . . . . . . 3 . 2 . 2 . 1 14 . Ram . | . . . . . . . . . . . . . . . . . . . Kick . | . . . . . . . . . . . . . . . . . . . Crush 10 | . . 1 1 . . . . . . . . 1 . . . . 7 . Escape Stasis 17 | . . . . . . . 5 . . . . . 12 . . . . . Rewire 93 | . . . . . . . . 51 . . . . 42 . . . . . Trap 4 | . . . . . . . . . . 4 . . . . . . . . Miscellaneous . | . . . . . . . . . . . . . . . . . . . Route ------- -11/Scrapyard -10/Materials -10/Mines -9/Materials (discovered 2 exits: [*Mat] / *Min) -9/Mines (discovered 3 exits: [*Mat x2] / [*Zio]) -7/Zion -6/Proximity Caves -6/Factory (discovered 2 exits: *Low x2) -6/Lower Caves -6/Lower Caves (discovered 2 exits: *Fac / *Dat) -6/Data Miner -5/Proximity Caves -5/Factory (discovered 4 exits: *Upp x2 / *Ext x2) -5/Extension (discovered 3 exits: *Fac x2 / *Cet) -5/Cetus (discovered 2 exits: *Fac / *Arc) -5/Archives -5/Hub_04(d) -4/Factory -3/Research (discovered 1 exit: Arm) History --------- Turn | Location | Event 1 | -11/Scrapyard | Discovered new exit (range 0) 1 | -11/Scrapyard | Entered Materials 308 | -10/Materials | Build established: Mutant 345 | -10/Materials | Discovered new exit (range 6) 379 | -10/Materials | Entered Mines 566 | -10/Mines | Assembled infested the area 607 | -10/Mines | Core integrity fell below 50% 633 | -10/Mines | Lost 4 parts (1p1n2w) 675 | -10/Mines | Learned location of Storage (-7) 689 | -10/Mines | Discovered new exit (range 7) 754 | -10/Mines | Entered Materials 754 | -9/Materials | Evolved 2 slots: Utility x2 862 | -9/Materials | Identified exit to Mines 984 | -9/Materials | Destroyed 8 combat bots 1061 | -9/Materials | Build established: Scavenger-Mutant 1123 | -9/Materials | Discovered new exit (range 16) 1357 | -9/Materials | Entered Mines 1361 | -9/Mines | Met a Derelict bent on vengeance 1456 | -9/Mines | Found a damaged Exp. Sensor Array with a note attached 1460 | -9/Mines | Found Prototype Device 1484 | -9/Mines | Identified Exp. Sensor Array 1761 | -9/Mines | Discovered new exit (range 6) 1868 | -9/Mines | Assisted by bots powering up and referring to "LRC-V3" 1890 | -9/Mines | A Derelict revealed a hidden shortcut to a safe place 2028 | -9/Mines | Discovered new exit (range 10) 2159 | -9/Mines | Entered Zion 2159 | -7/Zion | Accompanied by 3 allies 2257 | -7/Zion | Given the Hacking Drone Bay 2257 | -7/Zion | Found Prototype Device 2270 | -7/Zion | Discovered new exit (range 12) 2569 | -7/Zion | Learned location of 1 exit from Factory 2950 | -7/Zion | Given A8's code to call for help 2982 | -7/Zion | Learned location of Quarantine (-3) 3075 | -7/Zion | Found CR-A16's Pointy Stick 3086 | -7/Zion | Learned location of Warlord (-5) 3141 | -7/Zion | Learned location of Recycling (-7) 3304 | -7/Zion | Build established: Derelict-Mutant 3339 | -7/Zion | Found Prototype Energy Gun 3447 | -7/Zion | Imprinted 3449 | -7/Zion | Declared Zion's savior 3668 | -7/Zion | Visited the Megawrench Repair Shop 3668 | -7/Zion | Megawrench repaired 7 parts 3762 | -7/Zion | Identified exit to Proximity Caves 3827 | -7/Zion | Entered Proximity Caves 3827 | -6/Proximity Caves | Accompanied by 7 allies 4154 | -6/Proximity Caves | Discovered new exit (range 7) 4194 | -6/Proximity Caves | Identified exit to Factory 4221 | -6/Proximity Caves | Entered Factory 4221 | -6/Factory | Accompanied by 4 allies 4221 | -6/Factory | Evolved 6 slots: Propulsion x1, Utility x4, Weapon x1 4222 | -6/Factory | Identified exit to Lower Caves 4484 | -6/Factory | Spotted B-75 Beast 4504 | -6/Factory | Destroyed B-75 Beast 4638 | -6/Factory | Retrieved Zion intel report: Depthwide Sectors/0 4740 | -6/Factory | Discovered exit to Lower Caves (range 9) 4741 | -6/Factory | Retrieved Zion intel report: Guard Positions 4768 | -6/Factory | Entered Lower Caves 4768 | -6/Lower Caves | Accompanied by 1 ally 4841 | -6/Lower Caves | Build established: Scavenger-Tank 5250 | -6/Lower Caves | Learned 8 Research zone layouts 5250 | -6/Lower Caves | Learned Armory terminal intel 5250 | -6/Lower Caves | Learned Research garrison access intel 5250 | -6/Lower Caves | Learned Armory garrison access intel 5252 | -6/Lower Caves | A Commander dispatched an escort 5773 | -6/Lower Caves | Attracted the attention of an 0b10 outpost 5782 | -6/Lower Caves | Discovered new exit (range 8) 5981 | -6/Lower Caves | Identified exit to Lower Caves 6041 | -6/Lower Caves | Entered another Lower Caves area 6041 | -6/Lower Caves | Accompanied by 3 allies 6042 | -6/Lower Caves | Commander's escort returned to base 6065 | -6/Lower Caves | Discovered new exit (range 15) 6234 | -6/Lower Caves | Build established: Derelict-Skirmisher 6830 | -6/Lower Caves | Learned location of Extension (-5) 7022 | -6/Lower Caves | Discovered new exit (range 8) 7038 | -6/Lower Caves | Identified exit to Data Miner 7042 | -6/Lower Caves | Entered Data Miner 7042 | -6/Data Miner | Accompanied by 2 allies 7042 | -6/Data Miner | Discovered new exit (range 6) 7080 | -6/Data Miner | Met Data Miner 7132 | -6/Data Miner | Learned location of Section 7 (-2) 7132 | -6/Data Miner | Acquired the access code to Warlord's prototype stash 7150 | -6/Data Miner | Received God Mode back door access code from Data Miner 7259 | -6/Data Miner | Data Conduit disabled 7331 | -6/Data Miner | Lost 4 parts (1p1u2w) 7456 | -6/Data Miner | Build established: Derelict-Mutant 7585 | -6/Data Miner | Identified exit to Proximity Caves 7733 | -6/Data Miner | Entered Proximity Caves 7733 | -5/Proximity Caves | Accompanied by 2 allies 8035 | -5/Proximity Caves | Build established: Derelict-Skirmisher 8280 | -5/Proximity Caves | Spotted B-75 Beast 8311 | -5/Proximity Caves | Allies destroyed B-75 Beast 8564 | -5/Proximity Caves | Build established: Derelict-Gunner 8638 | -5/Proximity Caves | Attracted the attention of an 0b10 checkpoint 8810 | -5/Proximity Caves | Discovered new exit (range 15) 8838 | -5/Proximity Caves | Identified exit to Factory 8840 | -5/Proximity Caves | Entered Factory 8840 | -5/Factory | Evolved 2 slots: Power x1, Utility x1 8841 | -5/Factory | Identified exit to Upper Caves 9000 | -5/Factory | Zion Heavy Resupply teleported in 9575 | -5/Factory | Zion Heavy squad teleported in 9740 | -5/Factory | First assault squad dispatched 9785 | -5/Factory | Retrieved Zion intel report: Branch Access 9785 | -5/Factory | Identified exit to Extension 10149 | -5/Factory | Found Prototype Protection 10149 | -5/Factory | Identified Zio. Weapon Casing 10175 | -5/Factory | Build established: Hauler-Gunner 10234 | -5/Factory | Terminal network hard line cut 10497 | -5/Factory | Entered Extension 10557 | -5/Extension | Zion Kinetic Resupply teleported in 10817 | -5/Extension | Retrieved Zion intel report: Depthwide Sectors/-1 10857 | -5/Extension | Retrieved Zion intel report: Depthwide Sectors/0 10879 | -5/Extension | Retrieved Zion intel report: Guard Positions 10889 | -5/Extension | Retrieved Zion intel report: Emergency Access 10921 | -5/Extension | Retrieved Zion intel report: Active Terminals 10993 | -5/Extension | Retrieved Zion intel report: Trap Installations 11000 | -5/Extension | Retrieved Zion intel report: Unaware Schematics 11054 | -5/Extension | Energy Cycler disabled 11054 | -5/Extension | Rescued a captive Derelict 11054 | -5/Extension | Rescued a captive Derelict 11054 | -5/Extension | Rescued a captive Derelict 11054 | -5/Extension | Rescued a captive Derelict 11054 | -5/Extension | Rescued a captive Derelict 11054 | -5/Extension | Rescued a captive Derelict 11054 | -5/Extension | Rescued a captive Derelict 11054 | -5/Extension | Rescued a captive Derelict 11055 | -5/Extension | Rescued a captive Derelict 11055 | -5/Extension | Rescued a captive Derelict 11056 | -5/Extension | Rescued a captive Derelict 11056 | -5/Extension | Rescued a captive Derelict 11059 | -5/Extension | Rescued a captive Derelict 11062 | -5/Extension | Rescued a captive Derelict 11067 | -5/Extension | Rescued a captive Derelict 11107 | -5/Extension | Rescued A7 11435 | -5/Extension | Spotted B-75 Beast 11448 | -5/Extension | Allies destroyed B-75 Beast 11450 | -5/Extension | Spotted B-75 Beast 11454 | -5/Extension | Discovered new exit (range 15) 11461 | -5/Extension | Allies destroyed B-75 Beast 11480 | -5/Extension | Retrieved Zion intel report: Prototype Schematics 11481 | -5/Extension | Zion Heavy Resupply teleported in 11547 | -5/Extension | Disrupted transfer network 11591 | -5/Extension | Retrieved Zion intel report: Unaware Schematics 11592 | -5/Extension | Zion Hover Resupply teleported in 11621 | -5/Extension | Zion Hover Resupply teleported in 11874 | -5/Extension | Terminal network hard line cut 11875 | -5/Extension | Discovered new exit (range 10) 11877 | -5/Extension | Discovered new exit (range 6) 11906 | -5/Extension | Entered Cetus 11906 | -5/Cetus | Accompanied by 8 allies (A7) 11911 | -5/Cetus | Acquired a Cetus Manufacturing Module code from A7 11931 | -5/Cetus | Spotted Cetus Guard 11931 | -5/Cetus | Spotted Cetus Guard 11931 | -5/Cetus | Allies destroyed Cetus Guard 11934 | -5/Cetus | Spotted Cetus Guard 11938 | -5/Cetus | Spotted Cetus Guard 11942 | -5/Cetus | Destroyed Cetus Guard 11947 | -5/Cetus | Allies destroyed Cetus Guard 11948 | -5/Cetus | Allies destroyed Cetus Guard 12109 | -5/Cetus | Destroyed A7 12112 | -5/Cetus | Extracted ID and sensor layout for unrecognized location from A7's data core 12138 | -5/Cetus | Found Prototype Protection 12148 | -5/Cetus | Identified Med. Regenerative Plating 12180 | -5/Cetus | Retrieved Zion intel report: Component Schematics 12220 | -5/Cetus | Retrieved Zion intel report: Component Stockpiles 12245 | -5/Cetus | Discovered new exit (range 15) 12289 | -5/Cetus | Spotted Cetus Guard 12289 | -5/Cetus | Spotted Cetus Guard 12293 | -5/Cetus | Destroyed Cetus Guard 12293 | -5/Cetus | Spotted Cetus Guard 12294 | -5/Cetus | Destroyed Cetus Guard 12294 | -5/Cetus | Spotted Cetus Guard 12296 | -5/Cetus | Allies destroyed Cetus Guard 12297 | -5/Cetus | Destroyed Cetus Guard 12311 | -5/Cetus | Discovered new exit (range 15) 12321 | -5/Cetus | Scared off Revision 17 12435 | -5/Cetus | Entered Archives 12435 | -5/Archives | Accompanied by 3 allies 12504 | -5/Archives | Unable to access archive contents 12506 | -5/Archives | Discovered new exit (range 16) 12543 | -5/Archives | Entered Hub_04(d) 12543 | -5/Hub_04(d) | Accompanied by 1 ally 12649 | -5/Hub_04(d) | Build established: Scavenger-Gunner 12693 | -5/Hub_04(d) | Retrieved Zion intel report: Active Terminals 12737 | -5/Hub_04(d) | Retrieved Zion intel report: Prototype Schematics 12849 | -5/Hub_04(d) | Spotted B-75 Beast 12866 | -5/Hub_04(d) | Destroyed B-75 Beast 12926 | -5/Hub_04(d) | Retrieved Zion intel report: Emergency Access 12934 | -5/Hub_04(d) | Retrieved Zion intel report: Trap Installations 13020 | -5/Hub_04(d) | Retrieved Zion intel report: Unaware Schematics 13024 | -5/Hub_04(d) | Enhanced Grunt warped into view, answering call for help 13032 | -5/Hub_04(d) | Enhanced Grunt warped into view, answering call for help 13126 | -5/Hub_04(d) | Discovered new exit (range 10) 13159 | -5/Hub_04(d) | Network Hub disabled 13273 | -5/Hub_04(d) | Spotted Lightning 13273 | -5/Hub_04(d) | Spotted Lightning 13274 | -5/Hub_04(d) | Spotted Lightning 13277 | -5/Hub_04(d) | Spotted Lightning 13277 | -5/Hub_04(d) | Spotted Lightning 13277 | -5/Hub_04(d) | Spotted Lightning 13277 | -5/Hub_04(d) | Entered Factory 13277 | -4/Factory | Evolved 2 slots: Utility x1, Weapon x1 13282 | -4/Factory | Identified Storm Laser 13475 | -4/Factory | Spotted B-86 Titan 13477 | -4/Factory | Destroyed B-86 Titan 13568 | -4/Factory | Build established: Hauler-Gunner 13890 | -4/Factory | Retrieved Zion intel report: Component Stockpiles 14027 | -4/Factory | First assault squad dispatched 14243 | -4/Factory | Lost 3 parts (1p1n1u) 14251 | -4/Factory | Destroyed 18 combat bots 14445 | -4/Factory | System corruption reached 10% 14527 | -4/Factory | Retrieved Zion intel report: Prototype Stockpiles 14534 | -4/Factory | Lost 11 parts (1p5u5w) 14595 | -4/Factory | Retrieved Zion intel report: Active Garrisons 14616 | -4/Factory | Core integrity fell below 50% 14642 | -4/Factory | Garrison activated, responded to threat 14643 | -4/Factory | Terminal network hard line cut 14657 | -4/Factory | System corruption reached 30% 15191 | -4/Factory | Destroyed 7 combat bots 15200 | -4/Factory | Lost 6 parts (1p1n2u2w) 15275 | -4/Factory | Discovered new exit (range 11) 15344 | -4/Factory | Entered Research 15344 | -3/Research | Evolved 2 slots: Utility x2 15345 | -3/Research | Identified exit to Armory 15347 | -3/Research | Loaded intel: 4 garrison access locations 15512 | -3/Research | Fabricated Lgt. Regenerative Plating (x1) 15594 | -3/Research | First assault squad dispatched 15817 | -3/Research | Zion Experimental squad teleported in 15825 | -3/Research | Found Prototype Protection 15825 | -3/Research | Identified Zio. Shade Armor 15829 | -3/Research | Found Zio. Shade Armor 15975 | -3/Research | Found Zio. Shade Armor 16073 | -3/Research | Found Prototype Energy Cannon 16077 | -3/Research | Found Prototype Energy Cannon 16102 | -3/Research | Spotted B-86 Titan 16110 | -3/Research | Garrison activated, responded to threat 16114 | -3/Research | High security lockdown imminent 16158 | -3/Research | Destroyed 9 combat bots 16194 | -3/Research | High security lockdown engaged 16214 | -3/Research | Core integrity fell below 50% 16234 | -3/Research | Core integrity fell below 20% 16241 | -3/Research | Lost 29 parts (2p8n10u9w) 16245 | -3/Research | Identified Zio. Alpha Cannon Mk. II (x2) 16248 | -3/Research | Destroyed by G-67 Veteran with Electrolaser Last Messages --------------- 16214_ ALERT: Assault forces dispatched. 16214_ Dropped Lrg. Storage Unit. 16214_ Extracted 70 energy. 16214_ Penetrated by Slug. 16215_ Knocked back. 16224_ C-30 ARC bursts open, deploying its payload. 16224_ H-77 Assassin unfolds itself. 16227_ Penetrated by Slug. 16227_ Slug penetrates Wall. 16233_ Penetrated by Slug. 16235_ System corrupted: Energy discharge (-22). 16241_ Slug penetrates Wall. 16241_ Penetrated by Slug. 16241_ Slug penetrates Wall. 16245_ Penetrated by Slug. 16245_ Slug penetrates Wall. 16245_ Slug penetrates H-77 Assassin. 16245_ Slug penetrates Wall. 16245_ Identified Zio. Alpha Cannon Mk. II. 16245_ Zio. Alpha Cannon Mk. II destroyed. Map ----- +----------------------------------------------------+ | ?????????????????????????????????????????????????? | | ?????????????????????????????????????????????????? | | ?????????????????????????????????????????????????? | | ?????????????????????????????????????????????????? | | ?????????????????????????????????????????????????? | | ?????????????????????????????????????????????????? | | ?????????????????????????????????????????????????? | | ?????????????????????????????????????????????????? | | ?????????????????????????????????????????????????? | | ?????????????????????????????????????????????????? | | ?????????????????????????????????????????????????? | | ?????????????????????????????????????????????????? | | ?????????????????????????????????????????????????? | | ?????????????????????????????????????????????????? | | ?????????????????????????????????????????????????? | | ?????????????????????????????????????????????????? | | ?????????????????????????????????????????????????? | | ?????????????????????????????????????????????????? | | ?????????????????????????????????????????????????? | | ?????????????????????????????????????????????????? | | ?????????????????????????????????????????????????? | | ?????????????????????????????????????????????????? | | ?????????????????????????????????????????????????? | | ?????????????????????????????#######?????????????? | | ?????????# ! ##+############ #?????????????? | | ?????????# g h h @ "" #?????????????? | | ?????????# Yg w T #?????????????? | | ?????????# g ] [ #?????????????? | | ?????????#= ##+#########;##! #?????????????? | | ????????????????????????? ## ##?????????????? | | ???????????????????????? ## #??????????????? | | ???????????????????????# ! ## #??????????????? | | ???????????????????????# ## #??????????????? | | ???????????????????????# ## #??????????????? | | ???????????????????????# ## #??????????????? | | ???????????????????????# ## #??????????????? | | ???????????????????????# ## #??????????????? | | ???????????????????????# ## #??????????????? | | ???????????????????????# ## #??????????????? | | ???????????????????????? ## #??????????????? | | ????????????????????????? ?# #??????????????? | | ??????????????????????????????# #??????????????? | | ????????????????##### #######?# #??????????????? | | ????????????????# ?# #??????????????? | | ????????????????# # #??????????????? | | ????????????????# # #??????????????? | | ????????????????# " #??#######?????? | | ??????????????????? """ """ # #? #?????? | | ???????????????????????"S""" # #?! !] #?????? | | ?????????????????????########?# # !! #?????? | +----------------------------------------------------+ Best States ------------- Heat Dissipation 155 Energy Generation 51 Energy Capacity 1750 Matter Stores 300 Matter Capacity 300 Sight Range 16 Robot Scan Range 22 Terrain Scan Range 18 Terrain Scan Density 10 Armor Coverage 1350 Resistance: KI 30 Resistance: TH 30 Resistance: EX 30 Resistance: EM 30 Resistance: I 30 Resistance: S 30 Resistance: P 30 Core Shielding 30 Utility Shielding 33 Weapon Shielding 100 Phase Shifting 10 Evasion (%) 50 Target Analysis 6 Core Analysis 6 Recoil Reduction 9 Matter Filtering 50 Particle Charging 30 Kinecelleration 40 Salvage Targeting 4 Offensive Hacking 12 Item Schematics ----------------- Combat Drone Bay | -6/Data Miner | Free Lgt. Regenerative Plating | -6/Data Miner | Free Exp. Flexi-carbon Leg | -6/Data Miner | Free Triangulator | -6/Data Miner | Free Exp. Terrain Scanner | -6/Data Miner | Free Exp. Targeting Computer | -6/Data Miner | Free Exp. ECM Suite | -6/Data Miner | Free Enh. Force Rifle | -5/Extension | Z-intel Antimatter Cannon | -5/Extension | Z-intel Biomechanical Wings | -5/Extension | Z-intel Enh. Flexi-carbon Leg | -5/Extension | Z-intel Imp. Heavy Laser | -5/Extension | Z-intel Enh. Fission Core | -5/Extension | Z-intel Tri-rail Accelerator | -5/Extension | Z-intel Enh. Armored Leg | -5/Extension | Z-intel Exp. Optical Array | -5/Extension | Z-intel Cld. Plasma Cannon | -5/Extension | Z-intel Linear Gravjet | -5/Cetus | Z-intel Lyr. Medium Armor Plating | -5/Cetus | Z-intel Adv. ECM Suite | -5/Cetus | Z-intel Lgt. Fission Core | -5/Cetus | Z-intel Plasma Cutter | -5/Cetus | Z-intel Imp. Medium Armor Plating | -5/Cetus | Z-intel Imp. Core Analyzer | -5/Cetus | Z-intel Imp. Plasma Cutter | -5/Cetus | Z-intel Fusion Compressor | -5/Cetus | Z-intel Imp. Component Analysis Suite | -5/Cetus | Z-intel Hvy. Treads | -5/Cetus | Z-intel Microactuators | -5/Cetus | Z-intel Hrd. Medium Armor Plating | -5/Cetus | Z-intel Plasma Sword | -5/Hub_04(d) | Z-intel Imp. Heavy Machine Gun | -5/Hub_04(d) | Z-intel Gravity Neutralizing Apparatus | -5/Hub_04(d) | Z-intel Lgt. Neutrino Core | -5/Hub_04(d) | Z-intel F-cell Engine | -5/Hub_04(d) | Z-intel Cld. Aerolev Unit | -5/Hub_04(d) | Z-intel Mni. Smartbomb Launcher | -5/Hub_04(d) | Z-intel Enh. Nuclear Core | -5/Hub_04(d) | Z-intel Impact Mace | -5/Hub_04(d) | Z-intel Scatter Rocket Array | -5/Hub_04(d) | Z-intel Prc. Energy Filter | -5/Hub_04(d) | Z-intel Robot Schematics ------------------ S-27 Virus | -6/Data Miner | Free G-50 Soldier | -6/Data Miner | Free G-67 Veteran | -6/Data Miner | Free X-72 Disruptor | -6/Data Miner | Free P-70 Sage | -6/Data Miner | Free I-36 Angel | -6/Data Miner | Free A-02 Transporter | -5/Extension | Z-intel T-07 Excavator | -5/Extension | Z-intel A-15 Conveyor | -5/Extension | Z-intel D-63 Destroyer | -5/Extension | Z-intel M-22 Extractor | -5/Extension | Z-intel R-10 Processor | -5/Extension | Z-intel K-01 Serf | -5/Extension | Z-intel H-66 Slayer | -5/Extension | Z-intel E-15 Imp | -5/Extension | Z-intel Y-64 Sentinel | -5/Hub_04(d) | Z-intel R-06 Scavenger | -5/Hub_04(d) | Z-intel L-41 Fighter | -5/Hub_04(d) | Z-intel B-60 Warrior | -5/Hub_04(d) | Z-intel B-48 Gladiator | -5/Hub_04(d) | Z-intel Fabricated ------------ Lgt. Regenerative Plating | x1 | -3/Research Alien Tech Used ----------------- None Achievements -------------- None Challenges ------------ None Game ------ Seed LobotomyProcessingVibroblade Manual? 0 Play Time 02:08:42 Cumulative 180.6 hours Start 2020.12.23 @ 12:29:01 End 2020.12.23 @ 17:40:03 Sessions 3 Manual Loads 0 Difficulty Rogue Special Mode None Game No. 174 Rogue 167 Adventurer 0 Explorer 7 Win Type - Total 3 Types 0/0/3/0/0/0/0/0/0 Lore% 62 Gallery% 89 Achievement% 65 Wizard Run 0 Options --------- ASCII 0 Keyboard 0 Movement Numpad Keybinds 0 Fullscreen 1 Font 18/X11 Map View 76x50 Tactical HUD 1 Map Filters NONE Filters NONE Steam 1 RUN: 0a8f0953-9d0c-4c9e-949f-8f13d1942cf3